fUSD/lending_fUSD_20250314
["ID","MTS","AMOUNT","RATE_DAILY","PERIOD"]
[356127827,1741936244583,-500.0,0.00013659,2]
[356127828,1741936244593,-572.45,0.00013659,2]
[356127829,1741936244602,-2033.0,0.0001366,2]
[356127830,1741936244612,-1279.0,0.0001366,2]
[356127831,1741936244621,-1418.0,0.0001366,2]
[356127832,1741936244631,-641.0,0.0001366,2]
[356127833,1741936244640,-571.0,0.0001366,2]
[356127834,1741936244649,-786.0,0.0001366,2]
[356127835,1741936244658,-541.0,0.0001366,2]
[356127836,1741936244667,-1271.0,0.0001366,2]
[356127837,1741936244677,-907.0,0.0001366,2]
[356127838,1741936244686,-1428.0,0.0001366,2]
[356127839,1741936244695,-4078.0,0.0001366,2]
[356127840,1741936244705,-1819.68677078,0.00013833,2]
[356127841,1741936244715,-1819.68677078,0.00015144,2]
[356127842,1741936244724,-1437.78,0.00015521,2]
[356127843,1741936244734,-156.0,0.00015535,3]
[356127844,1741936244743,-331.88,0.00016329,2]
[356127845,1741936244752,-2000.0,0.00016422,2]
[356127846,1741936244762,-1819.68677078,0.00016456,2]
[356127847,1741936244771,-450.11,0.00016601,2]
[356127848,1741936244780,-437.55,0.00016618,30]
[356127849,1741936244790,-259.84,0.00016619,2]
[356127850,1741936244799,-151.0,0.0001665,2]
[356127851,1741936244809,-3934.0,0.0001665,2]
[356127852,1741936244818,-1013.0,0.0001665,2]
[356127853,1741936244827,-2033.0,0.0001666,2]
[356127854,1741936244836,-1279.0,0.0001666,2]
[356127855,1741936244846,-668.501,0.0001666,2]
[356127856,1741936244855,-641.0,0.0001666,2]
[356127857,1741936244865,-571.0,0.0001666,2]
[356127858,1741936244875,-786.0,0.0001666,2]
[356127859,1741936244885,-541.0,0.0001666,2]
[356127860,1741936244894,-1271.0,0.0001666,2]
[356127861,1741936244904,-907.0,0.0001666,2]
[356127862,1741936244914,-1428.0,0.0001666,2]
[356127863,1741936244924,-4078.0,0.0001666,2]
[356127864,1741936244934,-23383.22133229,0.0001688,30]
[356127865,1741936244943,-177.42,0.00016888,2]
[356127866,1741936244953,-169.99,0.00016978,2]
[356127867,1741936244962,-1000.0,0.00017043,2]
[356127868,1741936244972,-201.5967302,0.000171,2]
[356127869,1741936244982,-201.59673011,0.000171,2]
[356127870,1741936244992,-201.59673011,0.000171,2]
[356127871,1741936245004,-281.13,0.00017116,2]
[356127872,1741936245022,-200.0,0.00017145,2]
[356127873,1741936245032,-179.86,0.00017152,2]
[356127874,1741936245041,-281.13,0.00017161,2]
[356127875,1741936245051,-281.13,0.00017206,2]
[356127876,1741936245060,-281.13,0.00017251,2]
[356127877,1741936245069,-281.13,0.00017296,2]
[356127878,1741936245079,-23900.0,0.00017329,2]
[356127879,1741936245088,-281.13,0.00017341,2]
[356127880,1741936245097,-200.0,0.00017367,2]
[356127881,1741936245106,-281.13,0.00017386,2]
[356127882,1741936245116,-240.13,0.00017395,2]
[356127883,1741936245125,-281.13,0.00017431,2]
[356127884,1741936245135,-150.0,0.00017437,7]
[356127885,1741936245145,-281.13,0.00017476,2]
[356127886,1741936245157,-250.0,0.00017486,2]
[356127887,1741936245167,-281.13,0.00017522,2]
[356127888,1741936245176,-195.37,0.00017535,2]
[356127889,1741936245186,-281.13,0.00017567,2]
[356127890,1741936245195,-281.13,0.00017612,2]
[356127891,1741936245205,-281.13,0.00017657,2]
[356127892,1741936245215,-301.02,0.00017664,2]
[356127893,1741936245224,-281.13,0.00017702,2]
[356127894,1741936245234,-281.13,0.00017747,2]
[356127895,1741936245244,-1819.68677078,0.00017767,2]
[356127896,1741936245253,-265.91,0.00017768,2]
[356127897,1741936245263,-1437.78,0.00017785,2]
[356127898,1741936245273,-281.13,0.00017792,2]
[356127899,1741936245283,-281.13,0.00017837,2]
[356127900,1741936245292,-567.66174279,0.00017874,2]
[356127901,1741936245303,-281.13,0.00017882,2]
[356127902,1741936245312,-281.13,0.00017927,2]
[356127903,1741936245322,-281.13,0.00017972,2]
[356127904,1741936245331,-195.37,0.00017974,2]
[356127905,1741936245340,-170.2,0.00018018,2]
[356127906,1741936245350,-3281.671,0.00018143,2]
[356127907,1741936245359,-166.342,0.00018143,2]
[356127908,1741936245369,-567.66174278,0.00018299,2]
[356127909,1741936245379,-156.0,0.00018303,3]
[356127910,1741936245388,-195.37,0.00018412,2]
[356127911,1741936245398,-200.0,0.00018432,2]
[356127912,1741936245409,-259.84,0.00018696,2]
[356127913,1741936245419,-567.66174278,0.00018724,2]
[356127914,1741936245429,-201.59673011,0.000189,2]
[356127915,1741936245438,-1585.47984553,0.00019,2]
[356127916,1741936245448,-1819.68677078,0.00019078,2]
[356127917,1741936245459,-567.66174278,0.00019149,2]
[356127918,1741936245469,-1000.0,0.00019173,2]
[356127919,1741936245479,-300.0,0.00019507,2]
[356127920,1741936245488,-567.66174278,0.00019574,2]
[356127921,1741936245497,-151.0,0.0001965,2]
[356127922,1741936245506,-3934.0,0.0001965,2]
[356127923,1741936245516,-1013.0,0.0001965,2]
[356127924,1741936245524,-1822.481,0.0001966,2]
[356127925,1741936245534,-1279.0,0.0001966,2]
[356127926,1741936245544,-571.0,0.0001966,2]
[356127927,1741936245553,-786.0,0.0001966,2]
[356127928,1741936245563,-541.0,0.0001966,2]
[356127929,1741936245572,-1271.0,0.0001966,2]
[356127930,1741936245582,-907.0,0.0001966,2]
[356127931,1741936245591,-1428.0,0.0001966,2]
[356127932,1741936245600,-4078.0,0.0001966,2]
[356127933,1741936245610,-300.0,0.00019671,2]
[356127934,1741936245619,-160.07,0.00019699,2]
[356127935,1741936245628,-1301.18,0.00019781,2]
[356127936,1741936245638,-374.77,0.00019781,2]
[356127937,1741936245647,-160.07,0.00019822,2]
[356127938,1741936245657,-160.07,0.00019946,2]
[356127939,1741936245666,-567.66174278,0.0002,2]
[356127940,1741936245675,-338.61803665,0.0002,30]
[356127941,1741936245684,-1437.78,0.00020049,2]
[356127942,1741936245694,-160.07,0.00020069,2]
[356127943,1741936245703,-160.07,0.00020192,2]
[356127944,1741936245712,-190.33,0.0002029,2]
[356127945,1741936245721,-160.07,0.00020315,2]
[356127946,1741936245730,-6681.3110679,0.00020325,2]
[356127947,1741936245739,-5000.0,0.00020325,2]
[356127948,1741936245748,-1819.68677078,0.00020389,2]
[356127949,1741936245758,-567.66174278,0.00020425,2]
[356127950,1741936245767,-160.07,0.00020438,2]
[356127951,1741936245777,-160.07,0.00020561,2]
[356127952,1741936245786,-160.07,0.00020684,2]
[356127953,1741936245796,-259.84,0.00020774,2]
[356127954,1741936245806,-567.66174278,0.0002085,2]
[356127955,1741936245815,-550.0,0.00021,2]
[356127956,1741936245824,-151.0,0.00021,7]
[356127957,1741936245833,-151.0,0.00021,7]
[356127958,1741936245842,-151.0,0.00021,7]
[356127959,1741936245851,-151.0,0.00021,7]
[356127960,1741936245860,-151.0,0.00021,7]
[356127961,1741936245869,-151.0,0.00021,7]
[356127962,1741936245878,-151.0,0.00021,7]
[356127963,1741936245887,-151.0,0.00021,7]
[356127964,1741936245896,-151.0,0.00021,7]
[356127965,1741936245905,-278.48205791,0.00021,7]
[356127966,1741936245915,-156.0,0.0002107,3]
[356127967,1741936245924,-437.55,0.00021096,30]
[356127968,1741936245933,-700.0,0.000212,7]
[356127969,1741936245942,-567.66174278,0.00021275,2]
[356127970,1741936245952,-708.6074121,0.00021286,2]
[356127971,1741936245962,-1400.0,0.000213,7]
[356127972,1741936245971,-1000.0,0.00021303,2]
[356127973,1741936245980,-2100.0,0.000214,7]
[356127974,1741936245989,-1236.0,0.000214,2]
[356127975,1741936245998,-1087.0,0.000215,2]
[356127976,1741936246007,-500.0,0.000215,2]
[356127977,1741936246016,-1000.0,0.000215,2]
[356127978,1741936246026,-1000.0,0.000215,2]
[356127979,1741936246035,-1033.0,0.000215,3]
[356127980,1741936246044,-1000.0,0.000215,3]
[356127981,1741936246053,-1000.0,0.000215,4]
[356127982,1741936246062,-1000.0,0.000215,4]
[356127983,1741936246071,-1000.0,0.000215,3]
[356127984,1741936246080,-1181.0,0.000215,2]
[356127985,1741936246089,-856.0,0.000215,4]
[356127986,1741936246098,-2800.0,0.000215,7]
[356127987,1741936246108,-419.51771678,0.000215,2]
[356127988,1741936246117,-3500.0,0.000216,7]
[356127989,1741936246127,-5000.0,0.00021696,2]
[356127991,1741936246136,-949.04349894,0.00021696,2]
[356127993,1741936246146,-154.86986133,0.00021696,2]
[356127994,1741936246155,-154.86986133,0.00021697,2]
[356127995,1741936246164,-154.86986133,0.00021698,2]
[356127996,1741936246174,-154.86986133,0.00021699,2]
[356127997,1741936246183,-700.0,0.000217,7]
[356127998,1741936246193,-5800.0,0.000217,2]
[356127999,1741936246202,-2104.39151016,0.000217,2]
[356128000,1741936246211,-1819.68677078,0.000217,2]
[356128001,1741936246220,-567.66174278,0.000217,2]
[356128002,1741936246230,-154.86986133,0.000217,2]
[356128003,1741936246239,-1000.0,0.00021741,2]
[356128004,1741936246248,-949.04349889,0.00021753,2]
[356128005,1741936246258,-150.2224408,0.00021773,2]
[356128006,1741936246267,-160.07883191,0.00021773,2]
[356128007,1741936246276,-625.74049487,0.00021773,2]
[356128008,1741936246286,-500.0,0.00021773,2]
[356128009,1741936246295,-14897.0,0.00021781,2]
[356128010,1741936246305,-3370.0,0.00021781,2]
[356128011,1741936246314,-151.0,0.00021781,2]
[356128012,1741936246324,-151.0,0.00021781,2]
[356128013,1741936246334,-151.0,0.00021781,2]
[356128014,1741936246342,-151.0,0.00021781,2]
[356128015,1741936246351,-175.093442,0.00021781,2]
[356128016,1741936246360,-175.093442,0.00021781,2]
[356128017,1741936246369,-151.0,0.00021785,2]
[356128018,1741936246378,-151.0,0.00021785,2]
[356128019,1741936246387,-151.0,0.00021785,2]
[356128020,1741936246396,-153.063685,0.00021785,2]
[356128021,1741936246406,-261.597714,0.00021785,2]
[356128022,1741936246415,-153.063685,0.00021785,2]
[356128023,1741936246424,-151.0,0.00021785,2]
[356128024,1741936246434,-151.740071,0.00021785,2]
[356128025,1741936246443,-151.0,0.00021785,2]
[356128026,1741936246452,-151.0,0.00021785,2]
[356128027,1741936246465,-151.0,0.00021785,2]
[356128028,1741936246475,-151.0,0.00021785,2]
[356128029,1741936246484,-151.0,0.00021785,2]
[356128030,1741936246493,-151.0,0.00021785,2]
[356128031,1741936246504,-4721.2483354,0.00021785,2]
[356128032,1741936246513,-5210.9627324,0.00021785,2]
[356128033,1741936246522,-5700.6771294,0.00021785,2]
[356128034,1741936246531,-151.0,0.00021785,2]
[356128035,1741936246542,-151.0,0.00021785,2]
[356128036,1741936246552,-157.05,0.00021786,2]
[356128037,1741936246561,-677296.52440799,0.00021796,7]
[356128038,1741936246570,-151.0,0.00021796,2]
[356128039,1741936246579,-229.966055,0.00021796,2]
[356128040,1741936246588,-151.490731,0.00021796,2]
[356128041,1741936246598,-151.0,0.00021796,2]
[356128042,1741936246607,-153.063685,0.00021796,2]
[356128043,1741936246616,-153.063685,0.00021796,2]
[356128044,1741936246626,-151.0,0.00021796,2]
[356128046,1741936246635,-151.0,0.00021796,2]
[356128048,1741936246644,-151.0,0.00021796,2]
[356128049,1741936246653,-151.0,0.00021796,2]
[356128050,1741936246663,-151.0,0.00021796,2]
[356128051,1741936246671,-234.219476,0.00021796,2]
[356128052,1741936246680,-151.0,0.00021796,2]
[356128053,1741936246689,-151.0,0.00021796,2]
[356128054,1741936246699,-151.0,0.00021796,2]
[356128055,1741936246708,-394.330387,0.00021796,2]
[356128056,1741936246717,-394.330387,0.00021796,2]
[356128057,1741936246727,-192.815926,0.00021796,2]
[356128058,1741936246736,-192.815926,0.00021796,2]
[356128059,1741936246744,-151.0,0.00021796,2]
[356128060,1741936246753,-151.0,0.00021796,2]
[356128061,1741936246763,-155.317146,0.00021796,2]
[356128062,1741936246772,-696.532595,0.00021796,2]
[356128063,1741936246781,-696.532595,0.00021796,2]
[356128064,1741936246790,-151.0,0.00021796,2]
[356128065,1741936246799,-151.0,0.00021796,2]
[356128066,1741936246808,-151.0,0.00021796,2]
[356128067,1741936246818,-151.0,0.00021796,2]
[356128068,1741936246827,-203.314063,0.00021796,2]
[356128069,1741936246836,-151.0,0.00021796,2]
[356128070,1741936246845,-151.0,0.00021796,2]
[356128071,1741936246854,-151.0,0.00021796,2]
[356128072,1741936246863,-175.093442,0.00021796,2]
[356128073,1741936246872,-151.0,0.00021796,2]
[356128074,1741936246881,-175.093442,0.00021796,2]
[356128075,1741936246890,-1743.06,0.00021799,2]
[356128076,1741936246899,-243.72682941,0.00021799,2]
[356128077,1741936246908,-500.0,0.00021799,2]
[356128078,1741936246918,-700.0,0.000218,7]
[356128079,1741936246927,-2749697.29881955,0.000218,2]
[356128080,1741936247764,-319440.00000001,0.000218,2]
[356128081,1741936248167,-151.0,0.00021796,2]
[356128082,1741936248177,-55949.0000002,0.000218,2]
[356128083,1741936248201,-1076721.19589714,0.000218,2]
[356128084,1741936248212,-3272.16886646,0.000218,2]
[356128085,1741936248262,-2496677.06881514,0.000218,2]
[356128086,1741936772794,-2725.337,0.00011344,2]
[356128087,1741936772816,-166.34331558,0.00011344,2]
[356128088,1741936772838,-6096.1868,0.00011476,2]
[356128089,1741936772861,-500.0,0.00011575,2]
[356128090,1741936772883,-161.46317224,0.00011575,2]
[356128091,1741936772906,-500.0,0.00011575,2]
[356128092,1741936772928,-500.0,0.00011575,2]
[356128093,1741936772950,-245.43338866,0.00011575,2]
[356128094,1741936772971,-771171.003021,0.00011576,2]
[356128095,1741936773001,-47329.4065781,0.00011576,2]
[356128096,1741936773028,-150.0,0.00012618,2]
[356128097,1741936773053,-550.0,0.00012734,2]
[356128098,1741936773077,-150.0,0.00012734,2]
[356128099,1741936773101,-250.0,0.00012897,2]
[356128100,1741936773124,-1279.0,0.0001484,2]
[356128101,1741936773147,-1013.0,0.0001484,2]
[356128102,1741936773170,-536.77,0.0001484,2]
[356128103,1741936773193,-1114.0,0.0001484,2]
[356128104,1741936773217,-786.0,0.0001484,2]
[356128105,1741936773240,-1271.0,0.0001484,2]
[356128106,1741936773263,-1428.0,0.0001484,2]
[356128107,1741936773286,-541.0,0.0001484,2]
[356128108,1741936773309,-907.0,0.0001484,2]
[356128109,1741936773332,-4078.0,0.0001484,2]
[356128110,1741936773355,-201.59673011,0.000171,2]
[356128111,1741936773378,-201.59673011,0.000171,2]
[356128112,1741936773401,-1011.872,0.0001784,2]
[356128113,1741936773425,-885.51,0.0001784,2]
[356128114,1741936773448,-1114.0,0.0001784,2]
[356128115,1741936773470,-786.0,0.0001784,2]
[356128116,1741936773492,-1271.0,0.0001784,2]
[356128117,1741936773517,-1428.0,0.0001784,2]
[356128118,1741936773540,-541.0,0.0001784,2]
[356128119,1741936773561,-907.0,0.0001784,2]
[356128120,1741936773583,-554.5,0.0001784,2]
[356128121,1741936773606,-488.52,0.0001784,2]
[356128122,1741936773631,-1273.66,0.00018926,2]
[356128123,1741936773654,-196.88,0.00020471,2]
[356128124,1741936773677,-1495.09,0.00020667,2]
[356128125,1741936773700,-9189.62,0.00020746,2]
[356128126,1741936773724,-1114.0,0.0002084,2]
[356128127,1741936773747,-786.0,0.0002084,2]
[356128128,1741936773770,-1271.0,0.0002084,2]
[356128129,1741936773794,-1428.0,0.0002084,2]
[356128130,1741936773817,-541.0,0.0002084,2]
[356128131,1741936773839,-211.953,0.0002084,2]
[356128132,1741936773864,-23900.0,0.00020896,2]
[356128133,1741936773887,-201.59673011,0.000211,2]
[356128134,1741936773909,-1273.66,0.0002119,2]
[356128135,1741936773931,-531.4555591,0.00021286,2]
[356128136,1741936773954,-1015.62695045,0.00021364,2]
[356128137,1741936773976,-1072.27702524,0.00021364,2]
[356128138,1741936773998,-151.04954336,0.000214,2]
[356128139,1741936774020,-5771.2881,0.000216,2]
[356128140,1741936774042,-4715.6905,0.000216,2]
[356128141,1741936774064,-1792.7032,0.00021696,2]
[356128142,1741936774086,-5000.0,0.00021696,2]
[356128143,1741936774108,-20812.0237,0.00021696,2]
[356128144,1741936774130,-156.1552,0.00021696,2]
[356128145,1741936774152,-677.88821351,0.000217,2]
[356128146,1741936774174,-210.36801846,0.000217,2]
[356128147,1741936774196,-495.17121801,0.000217,2]
[356128148,1741936774218,-826.59,0.00021728,2]
[356128149,1741936774526,-154.43325957,0.00021773,2]
[356128150,1741936774548,-500.0,0.00021773,2]
[356128151,1741936774569,-1520.0,0.00021781,2]
[356128152,1741936774591,-160.10260719,0.00021787,2]
[356128153,1741936774612,-396.36398464,0.0002179,2]
[356128154,1741936774636,-16741.9145803,0.00021794,2]
[356128155,1741936774658,-500.0,0.00021799,2]
[356128156,1741936774679,-501.99186702,0.00021799,2]
[356128157,1741936774701,-1032.0,0.000218,2]
[356128158,1741936774722,-4246906.06082948,0.000218,2]
[356128159,1741936774743,-151.0,0.000218,2]
[356128160,1741936774769,-151.0,0.000218,2]
[356128161,1741936774790,-151.0,0.000218,2]
[356128162,1741936774813,-151.0,0.000218,2]
[356128163,1741936774835,-151.0,0.000218,2]
[356128164,1741936774856,-151.0,0.000218,2]
[356128165,1741936774879,-1000.0,0.000218,2]
[356128166,1741936774900,-174.25198232,0.000218,2]
[356128167,1741936774922,-157.0,0.000218,3]
[356128168,1741936774943,-2014.5567,0.00021835,2]
[356128169,1741936774966,-700.0,0.000219,7]
[356128170,1741936774988,-91754.3325689,0.000219,3]
[356128171,1741936775009,-1591.5,0.000219,2]
[356128172,1741936775030,-151.0,0.000219,2]
[356128173,1741936775052,-151.0,0.000219,2]
[356128174,1741936775073,-151.0,0.000219,2]
[356128175,1741936775094,-151.0,0.000219,2]
[356128176,1741936775116,-151.0,0.000219,2]
[356128177,1741936775137,-151.0,0.000219,2]
[356128178,1741936775158,-540.24104777,0.00021917,3]
[356128179,1741936775180,-500.0,0.00021917,3]
[356128180,1741936775201,-500.0,0.00021917,3]
[356128181,1741936775223,-500.0,0.00021917,3]
[356128182,1741936775244,-502.58043461,0.00021917,3]
[356128183,1741936775265,-500.0,0.00021917,3]
[356128184,1741936775287,-504.19407907,0.00021917,3]
[356128185,1741936775308,-504.92740315,0.00021917,3]
[356128186,1741936775329,-500.0,0.00021917,3]
[356128187,1741936775355,-505.17852501,0.00021917,3]
[356128188,1741936775376,-503.76404243,0.00021917,3]
[356128189,1741936775399,-500.0,0.00021917,3]
[356128190,1741936775420,-500.0,0.00021917,3]
[356128191,1741936775442,-500.0,0.00021917,3]
[356128192,1741936775463,-500.0,0.00021917,3]
[356128193,1741936775484,-500.0,0.00021917,3]
[356128194,1741936775505,-500.0,0.00021917,3]
[356128195,1741936775527,-601.32775476,0.00021917,3]
[356128196,1741936775547,-538.65378355,0.00021917,3]
[356128197,1741936775568,-502.68053105,0.00021917,3]
[356128198,1741936775589,-1173.12,0.00021917,3]
[356128199,1741936775611,-504.20836707,0.00021917,3]
[356128200,1741936775637,-500.0,0.00021917,3]
[356128201,1741936775659,-500.0,0.00021917,3]
[356128202,1741936775680,-503.86742964,0.00021917,3]
[356128203,1741936775702,-502.93132729,0.00021917,3]
[356128204,1741936775725,-504.84724232,0.00021917,3]
[356128205,1741936775746,-500.0,0.00021917,3]
[356128206,1741936775768,-500.0,0.00021917,3]
[356128207,1741936775789,-359.76,0.00021917,3]
[356128208,1741936775810,-500.0,0.00021917,3]
[356128209,1741936775832,-500.77965293,0.00021917,3]
[356128210,1741936775853,-824.92,0.00021917,3]
[356128211,1741936775876,-500.0,0.00021917,3]
[356128212,1741936775898,-500.0,0.00021917,3]
[356128213,1741936775919,-500.0,0.00021917,3]
[356128214,1741936775939,-505.62143665,0.00021917,3]
[356128215,1741936775960,-1170.76,0.00021917,3]
[356128216,1741936775982,-500.0,0.00021917,3]
[356128217,1741936776002,-563.47,0.00021917,3]
[356128218,1741936776023,-724.09,0.00021917,3]
[356128219,1741936776045,-255.08844118,0.00021917,3]
[356128220,1741936776067,-500.0,0.00021917,3]
[356128221,1741936776088,-500.0,0.00021917,3]
[356128222,1741936776110,-500.0,0.00021917,3]
[356128223,1741936776137,-500.0,0.00021917,3]
[356128224,1741936776166,-500.0,0.00021917,3]
[356128225,1741936776189,-500.0,0.00021917,3]
[356128226,1741936776212,-500.0,0.00021917,3]
[356128227,1741936776234,-500.0,0.00021917,3]
[356128228,1741936776257,-500.0,0.00021917,3]
[356128229,1741936776278,-680.44,0.00021917,3]
[356128230,1741936776299,-502.71615809,0.00021917,3]
[356128231,1741936776322,-500.0,0.00021917,3]
[356128232,1741936776344,-500.0,0.00021917,3]
[356128233,1741936776367,-606.43739704,0.00021917,3]
[356128234,1741936776388,-500.0,0.00021917,3]
[356128235,1741936776409,-500.0,0.00021917,3]
[356128236,1741936776432,-503.93701013,0.00021917,3]
[356128237,1741936776454,-500.0,0.00021917,3]
[356128238,1741936776476,-551.80100656,0.00021917,3]
[356128239,1741936776498,-505.59064573,0.00021917,3]
[356128240,1741936776519,-1067.37,0.00021917,3]
[356128241,1741936776541,-504.7586056,0.00021917,3]
[356128242,1741936776563,-682.16,0.00021917,3]
[356128243,1741936776585,-500.0,0.00021917,3]
[356128244,1741936776607,-500.0,0.00021917,3]
[356128245,1741936776632,-580.73323683,0.00021917,3]
[356128246,1741936776654,-500.0,0.00021917,3]
[356128247,1741936776677,-500.0,0.00021917,3]
[356128248,1741936776697,-503.54502325,0.00021917,3]
[356128249,1741936776720,-1272.63,0.00021917,3]
[356128250,1741936776742,-500.0,0.00021917,3]
[356128251,1741936776764,-503.39499437,0.00021917,3]
[356128252,1741936776786,-510.93,0.00021917,3]
[356128253,1741936776809,-504.60772097,0.00021917,3]
[356128254,1741936776832,-505.02192794,0.00021917,3]
[356128255,1741936776854,-500.0,0.00021917,3]
[356128256,1741936776875,-500.0,0.00021917,3]
[356128257,1741936776897,-504.70208665,0.00021917,3]
[356128258,1741936776919,-505.42515113,0.00021917,3]
[356128259,1741936776942,-615.94,0.00021917,3]
[356128260,1741936776964,-500.0,0.00021917,3]
[356128261,1741936776985,-502.1706178,0.00021917,3]
[356128262,1741936777006,-504.3996701,0.00021917,3]
[356128263,1741936777028,-503.51843134,0.00021917,3]
[356128264,1741936777051,-500.0,0.00021917,3]
[356128265,1741936777072,-500.0,0.00021917,3]
[356128266,1741936777094,-502.17320479,0.00021917,3]
[356128267,1741936777116,-504.21927236,0.00021917,3]
[356128268,1741936777140,-417.34475808,0.00021917,3]
[356128269,1741936777163,-500.0,0.00021917,3]
[356128270,1741936777184,-503.47375792,0.00021917,3]
[356128271,1741936777206,-500.0,0.00021917,3]
[356128272,1741936777228,-503.31454545,0.00021917,3]
[356128273,1741936777251,-500.0,0.00021917,3]
[356128274,1741936777273,-540.37,0.00021917,3]
[356128275,1741936777299,-504.79841767,0.00021917,3]
[356128276,1741936777321,-1269.96,0.00021917,3]
[356128277,1741936777344,-500.0,0.00021917,3]
[356128278,1741936777367,-500.0,0.00021917,3]
[356128279,1741936777391,-500.0,0.00021917,3]
[356128280,1741936777414,-500.0,0.00021917,3]
[356128281,1741936777436,-500.0,0.00021917,3]
[356128282,1741936777458,-509.93,0.00021917,3]
[356128283,1741936777480,-500.0,0.00021917,3]
[356128284,1741936777502,-596.66,0.00021917,3]
[356128285,1741936777526,-500.0,0.00021917,3]
[356128286,1741936777547,-500.0,0.00021917,3]
[356128287,1741936777570,-500.0,0.00021917,3]
[356128288,1741936777592,-500.0,0.00021917,3]
[356128289,1741936777614,-500.0,0.00021917,3]
[356128290,1741936777641,-500.0,0.00021917,3]
[356128291,1741936777664,-741.98,0.00021917,3]
[356128292,1741936777689,-500.0,0.00021917,3]
[356128293,1741936777712,-500.0,0.00021917,3]
[356128294,1741936777735,-500.0,0.00021917,3]
[356128295,1741936777758,-500.95916634,0.00021917,3]
[356128296,1741936777781,-500.0,0.00021917,3]
[356128297,1741936777803,-500.0,0.00021917,3]
[356128298,1741936777825,-500.0,0.00021917,3]
[356128299,1741936777848,-593.66,0.00021917,3]
[356128300,1741936777869,-500.0,0.00021917,3]
[356128301,1741936778109,-503.24603239,0.00021917,3]
[356128302,1741936778131,-500.0,0.00021917,3]
[356128303,1741936778153,-500.0,0.00021917,3]
[356128304,1741936778174,-500.0,0.00021917,3]
[356128305,1741936778195,-500.0,0.00021917,3]
[356128306,1741936778216,-500.0,0.00021917,3]
[356128307,1741936778238,-500.0,0.00021917,3]
[356128308,1741936778259,-1220.36,0.00021917,3]
[356128309,1741936778281,-500.0,0.00021917,3]
[356128310,1741936778302,-500.0,0.00021917,3]
[356128311,1741936778323,-627.51281145,0.00021917,3]
[356128312,1741936778345,-500.0,0.00021917,3]
[356128313,1741936778366,-593.71695786,0.00021917,3]
[356128314,1741936778387,-500.0,0.00021917,3]
[356128315,1741936778408,-500.0,0.00021917,3]
[356128316,1741936778430,-500.0,0.00021917,3]
[356128317,1741936778451,-400.24728522,0.00021917,3]
[356128318,1741936778472,-566.55,0.00021917,3]
[356128319,1741936778494,-500.44819079,0.00021917,3]
[356128320,1741936778516,-151.0,0.00021917,2]
[356128321,1741936778538,-1500.0,0.00021917,3]
[356128322,1741936778560,-503.75217579,0.00021917,3]
[356128323,1741936778582,-500.57027004,0.00021917,3]
[356128324,1741936778604,-500.0,0.00021917,3]
[356128325,1741936778631,-500.0,0.00021917,3]
[356128326,1741936778652,-500.0,0.00021917,3]
[356128327,1741936778674,-500.0,0.00021917,3]
[356128328,1741936778696,-500.0,0.00021917,3]
[356128329,1741936778722,-500.0,0.00021917,3]
[356128330,1741936778743,-500.0,0.00021917,3]